[Event "Nové Hrady - Open"]
[Site "Nové Hrady, Czech Republic"]
[Date "2024.08.11"]
[Round "1.8"]
[White "Brabcová, Nikola"]
[Black "Šťastná, Martina"]
[Result "0-1"]
[TimeControl "2x90min+30s"]
[WhiteFideId "23739371"]
[BlackFideId "385123"]
[WhiteElo "1507"]
[BlackElo "1945"]

1. e4 {[%clk 01:30:54]} {[%emt 00:00:02]} e5 {[%clk 01:30:52]} {[%emt
00:00:07]} 2. f4 {[%clk 01:31:15]} {[%emt 00:00:09]} d5 {[%clk 01:30:06]}
{[%emt 00:01:16]} 3. Nf3 {[%clk 01:31:15]} {[%emt 00:00:30]} Bg4 {[%clk
01:29:30]} {[%emt 00:01:06]} 4. Nc3 {[%clk 01:28:56]} {[%emt 00:02:49]} exf4
{[%clk 01:25:45]} {[%emt 00:04:16]} 5. d4 {[%clk 01:27:27]} {[%emt 00:02:00]}
Nf6 {[%clk 01:23:15]} {[%emt 00:02:57]} 6. Bd3 {[%clk 01:25:26]} {[%emt
00:02:32]} Bb4 {[%clk 01:18:59]} {[%emt 00:04:47]} 7. e5 {[%clk 01:21:48]}
{[%emt 00:04:07]} Ne4 {[%clk 01:15:45]} {[%emt 00:03:44]} 8. Bd2 {[%clk
01:21:04]} {[%emt 00:01:14]} Bxf3 {[%clk 01:10:09]} {[%emt 00:06:06]} 9. Qxf3
{[%clk 01:19:59]} {[%emt 00:01:35]} Qh4+ {[%clk 01:07:35]} {[%emt 00:03:04]} 10.
Ke2 {[%clk 01:19:04]} {[%emt 00:01:25]} Nxd2 {[%clk 01:03:35]} {[%emt
00:04:31]} 11. Kxd2 {[%clk 01:18:56]} {[%emt 00:00:37]} c6 {[%clk 01:03:10]}
{[%emt 00:00:55]} 12. a3 {[%clk 01:15:15]} {[%emt 00:04:11]} Ba5 {[%clk
00:59:15]} {[%emt 00:04:26]} 13. b4 {[%clk 01:12:54]} {[%emt 00:02:51]} Bb6
{[%clk 00:54:02]} {[%emt 00:05:42]} 14. Ne2 {[%clk 01:11:28]} {[%emt 00:01:55]}
Nd7 {[%clk 00:52:30]} {[%emt 00:02:03]} 15. Rhf1 {[%clk 01:09:00]} {[%emt
00:02:55]} Nf8 {[%clk 00:45:52]} {[%emt 00:07:11]} 16. c4 {[%clk 00:59:44]}
{[%emt 00:09:46]} dxc4 {[%clk 00:35:37]} {[%emt 00:10:45]} 17. Bxc4 {[%clk
00:58:24]} {[%emt 00:01:49]} O-O-O {[%clk 00:35:48]} {[%emt 00:00:19]} 18. Kc3
{[%clk 00:57:24]} {[%emt 00:01:30]} Ne6 {[%clk 00:32:17]} {[%emt 00:04:02]} 19.
Rfd1 {[%clk 00:55:36]} {[%emt 00:02:08]} Ng5 {[%clk 00:29:30]} {[%emt
00:03:26]} 20. Qd3 {[%clk 00:53:29]} {[%emt 00:02:35]} Rhe8 {[%clk 00:27:06]}
{[%emt 00:02:56]} 21. Qc2 {[%clk 00:51:49]} {[%emt 00:02:11]} Kb8 {[%clk
00:26:07]} {[%emt 00:01:29]} 22. a4 {[%clk 00:49:28]} {[%emt 00:02:51]} f3
{[%clk 00:23:56]} {[%emt 00:02:41]} 23. gxf3 {[%clk 00:46:20]} {[%emt
00:03:38]} Nxf3 {[%clk 00:24:01]} {[%emt 00:00:26]} 24. a5 {[%clk 00:42:48]}
{[%emt 00:04:02]} Nxd4 {[%clk 00:22:58]} {[%emt 00:01:32]} 25. Qb2 {[%clk
00:41:21]} {[%emt 00:01:54]} Nxe2+ {[%clk 00:23:06]} {[%emt 00:00:26]} 26. Bxe2
{[%clk 00:40:28]} {[%emt 00:01:22]} Bd4+ {[%clk 00:23:25]} {[%emt 00:00:11]} 27.
Rxd4 {[%clk 00:40:30]} {[%emt 00:00:27]} Qxd4+ {[%clk 00:23:49]} {[%emt
00:00:06]} 28. Kb3 {[%clk 00:40:47]} {[%emt 00:00:14]} Qxb2+ {[%clk 00:24:09]}
{[%emt 00:00:10]} 29. Kxb2 {[%clk 00:41:08]} {[%emt 00:00:09]} Rd2+ {[%clk
00:24:32]} {[%emt 00:00:07]} 30. Kc3 {[%clk 00:41:32]} {[%emt 00:00:07]} Rxe2
{[%clk 00:24:58]} {[%emt 00:00:03]} 31. Rd1 {[%clk 00:41:40]} {[%emt 00:00:21]}
R8xe5 {[%clk 00:24:59]} {[%emt 00:00:31]} 32. Rd7 {[%clk 00:41:17]} {[%emt
00:00:52]} R5e3+ {[%clk 00:23:20]} {[%emt 00:02:10]} 33. Kc4 {[%clk 00:41:24]}
{[%emt 00:00:18]} b5+ {[%clk 00:23:22]} {[%emt 00:00:32]} 34. axb6 {[%clk
00:41:14]} {[%emt 00:00:41]} axb6 {[%clk 00:23:47]} {[%emt 00:00:04]} 35. Rxf7
{[%clk 00:41:13]} {[%emt 00:00:31]} Rxh2 {[%clk 00:23:51]} {[%emt 00:00:26]} 36.
Rxg7 {[%clk 00:41:03]} {[%emt 00:00:40]} Rh4+ {[%clk 00:24:14]} {[%emt
00:00:07]} 37. Rg4 {[%clk 00:40:36]} {[%emt 00:00:57]} Rxg4# {[%clk 00:24:37]}
{[%emt 00:00:06]} 38. Kd4 {[%emt 00:00:08]} 0-1

[Event "Nové Hrady - Open"]
[Site "Nové Hrady, Czech Republic"]
[Date "2024.08.11"]
[Round "1.9"]
[White "Picek, Miroslav"]
[Black "Šebesta, Marek"]
[Result "1-0"]
[TimeControl "2x90min+30s"]
[WhiteFideId "325198"]
[BlackFideId "23765119"]
[WhiteElo "1922"]
[BlackElo "1495"]

1. Nf3 {[%clk 01:30:40]} {[%emt 00:00:19]} Nf6 {[%clk 01:30:47]} {[%emt
00:00:14]} 2. g3 {[%clk 01:30:50]} {[%emt 00:00:19]} g6 {[%clk 01:30:50]}
{[%emt 00:00:27]} 3. c4 {[%clk 01:31:04]} {[%emt 00:00:17]} Bg7 {[%clk
01:30:44]} {[%emt 00:00:36]} 4. Nc3 {[%clk 01:31:22]} {[%emt 00:00:12]} d6
{[%clk 01:31:01]} {[%emt 00:00:14]} 5. d4 {[%clk 01:31:37]} {[%emt 00:00:14]}
O-O {[%clk 01:31:16]} {[%emt 00:00:14]} 6. e4 {[%clk 01:31:47]} {[%emt
00:00:20]} Nc6 {[%clk 01:30:55]} {[%emt 00:00:51]} 7. Bg2 {[%clk 01:32:03]}
{[%emt 00:00:14]} e5 {[%clk 01:30:53]} {[%emt 00:00:32]} 8. dxe5 {[%clk
01:27:31]} {[%emt 00:05:02]} dxe5 {[%clk 01:28:40]} {[%emt 00:02:43]} 9. Qxd8
{[%clk 01:27:36]} {[%emt 00:00:25]} Rxd8 {[%clk 01:28:44]} {[%emt 00:00:26]} 10.
Bg5 {[%clk 01:27:44]} {[%emt 00:00:22]} Be6 {[%clk 01:24:09]} {[%emt 00:05:06]}
11. Nd5 {[%clk 01:22:59]} {[%emt 00:05:15]} Bxd5 {[%clk 01:21:32]} {[%emt
00:03:07]} 12. cxd5 {[%clk 01:22:50]} {[%emt 00:00:39]} Nb4 {[%clk 01:20:50]}
{[%emt 00:01:12]} 13. O-O {[%clk 01:22:13]} {[%emt 00:01:06]} h6 {[%clk
01:19:20]} {[%emt 00:02:00]} 14. Bxf6 {[%clk 01:19:57]} {[%emt 00:02:46]} Bxf6
{[%clk 01:19:48]} {[%emt 00:00:03]} 15. Rfd1 {[%clk 01:19:43]} {[%emt
00:00:43]} c6 {[%clk 01:14:25]} {[%emt 00:05:54]} 16. a3 {[%clk 01:18:10]}
{[%emt 00:02:03]} Na6 {[%clk 01:11:29]} {[%emt 00:03:26]} 17. dxc6 {[%clk
01:18:13]} {[%emt 00:00:26]} bxc6 {[%clk 01:10:50]} {[%emt 00:01:10]} 18. b4
{[%clk 01:18:27]} {[%emt 00:00:15]} Nc7 {[%clk 01:04:47]} {[%emt 00:06:35]} 19.
Rxd8+ {[%clk 01:01:18]} {[%emt 00:17:37]} Rxd8 {[%clk 01:04:02]} {[%emt
00:01:15]} 20. Rc1 {[%clk 01:01:43]} {[%emt 00:00:05]} Rd6 {[%clk 00:57:37]}
{[%emt 00:06:53]} 21. Kf1 {[%clk 00:46:31]} {[%emt 00:15:44]} Kf8 {[%clk
00:53:45]} {[%emt 00:04:23]} 22. Ke1 {[%clk 00:46:11]} {[%emt 00:00:49]} Ke7
{[%clk 00:51:47]} {[%emt 00:02:28]} 23. Rc5 {[%clk 00:46:23]} {[%emt 00:00:18]}
Ne6 {[%clk 00:37:02]} {[%emt 00:15:16]} 24. Ra5 {[%clk 00:45:12]} {[%emt
00:01:41]} Rd7 {[%clk 00:37:00]} {[%emt 00:00:31]} 25. Nxe5 {[%clk 00:39:03]}
{[%emt 00:06:39]} Bxe5 {[%clk 00:36:15]} {[%emt 00:01:15]} 26. Rxe5 {[%clk
00:39:28]} {[%emt 00:00:06]} f6 {[%clk 00:35:53]} {[%emt 00:00:52]} 27. Ra5
{[%clk 00:39:28]} {[%emt 00:00:29]} Nd4 {[%clk 00:34:45]} {[%emt 00:01:33]} 28.
Bh3 {[%clk 00:35:36]} {[%emt 00:04:27]} Rb7 {[%clk 00:29:37]} {[%emt 00:05:39]}
29. Rc5 {[%clk 00:31:53]} {[%emt 00:04:12]} Rb5 {[%clk 00:27:43]} {[%emt
00:02:25]} 30. Rc3 {[%clk 00:24:52]} {[%emt 00:07:30]} Rh5 {[%clk 00:26:11]}
{[%emt 00:02:03]} 31. Bg4 {[%clk 00:22:40]} {[%emt 00:02:42]} Rxh2 {[%clk
00:24:08]} {[%emt 00:02:33]} 32. Rc4 {[%clk 00:21:44]} {[%emt 00:01:25]} Rh1+
{[%clk 00:22:42]} {[%emt 00:01:56]} 33. Kd2 {[%clk 00:22:02]} {[%emt 00:00:12]}
Nb5 {[%clk 00:21:18]} {[%emt 00:01:55]} 34. Rxc6 {[%clk 00:20:22]} {[%emt
00:02:09]} Ra1 {[%clk 00:20:48]} {[%emt 00:01:01]} 35. Re6+ {[%clk 00:18:43]}
{[%emt 00:02:09]} Kf7 {[%clk 00:20:49]} {[%emt 00:00:29]} 36. Ra6 {[%clk
00:18:39]} {[%emt 00:00:31]} Rxa3 {[%clk 00:18:57]} {[%emt 00:02:25]} 37. Rxa3
{[%clk 00:18:45]} {[%emt 00:00:22]} Nxa3 {[%clk 00:19:24]} {[%emt 00:00:05]} 38.
Be2 {[%clk 00:19:02]} {[%emt 00:00:11]} Ke6 {[%clk 00:17:56]} {[%emt 00:01:59]}
39. Kc3 {[%clk 00:19:01]} {[%emt 00:00:31]} Ke5 {[%clk 00:17:58]} {[%emt
00:00:29]} 40. f3 {[%clk 00:18:15]} {[%emt 00:01:15]} h5 {[%clk 00:18:19]}
{[%emt 00:00:10]} 41. Kb2 {[%clk 00:17:30]} {[%emt 00:01:15]} Kd4 {[%clk
00:18:34]} {[%emt 00:00:15]} 42. Kxa3 {[%clk 00:16:00]} {[%emt 00:02:00]} Ke3
{[%emt 00:00:18]} 43. Bd1 {[%emt 00:00:33]} g5 {[%emt 00:05:32]} 44. f4 {[%emt
00:00:36]} h4 {[%emt 00:01:50]} 45. gxh4 {[%clk 00:10:17]} {[%emt 00:00:16]}
gxh4 {[%clk 00:18:32]} {[%emt 00:00:09]} 46. e5 {[%emt 00:01:11]} h3 {[%clk
00:18:06]} {[%emt 00:00:06]} 47. Ba4 {[%clk 00:10:23]} {[%emt 00:00:32]} h2
{[%clk 00:18:06]} {[%emt 00:00:31]} 48. Bc6 {[%emt 00:00:36]} Kxf4 {[%clk
00:17:40]} {[%emt 00:00:26]} 49. e6 {[%clk 00:11:06]} {[%emt 00:00:11]} f5
{[%clk 00:17:46]} {[%emt 00:00:24]} 50. e7 {[%clk 00:11:31]} {[%emt 00:00:05]}
Kg3 {[%clk 00:18:13]} {[%emt 00:00:03]} 51. e8=Q {[%emt 00:00:15]} f4 {[%clk
00:18:30]} {[%emt 00:00:07]} 52. Qe1 {[%clk 00:11:21]} {[%emt 00:01:00]} Kg4
{[%clk 00:18:37]} {[%emt 00:00:24]} 53. Qf2 {[%clk 00:11:29]} {[%emt 00:00:21]}
Kh3 {[%clk 00:18:54]} {[%emt 00:00:13]} 54. Bd7 {[%clk 00:11:51]} {[%emt
00:00:09]} 1-0

[Event "Nové Hrady - Open"]
[Site "Nové Hrady, Czech Republic"]
[Date "2024.08.11"]
[Round "1.10"]
[White "Valiyev, Adil"]
[Black "Garabik, Marek"]
[Result "0-1"]
[TimeControl "2x90min+30s"]
[WhiteFideId "23752246"]
[BlackFideId "23717742"]
[WhiteElo "1469"]
[BlackElo "1916"]

1. e4 {[%clk 01:30:56]} {[%emt 00:00:03]} e6 {[%clk 01:30:36]} {[%emt
00:00:24]} 2. d4 {[%clk 01:31:05]} {[%emt 00:00:20]} d5 {[%clk 01:31:04]}
{[%emt 00:00:04]} 3. e5 {[%clk 01:30:54]} {[%emt 00:00:41]} c5 {[%clk
01:31:11]} {[%emt 00:00:22]} 4. c3 {[%clk 01:30:42]} {[%emt 00:00:43]} Bd7
{[%clk 01:31:18]} {[%emt 00:00:23]} 5. Nf3 {[%clk 01:29:24]} {[%emt 00:01:47]}
Qb6 {[%clk 01:31:40]} {[%emt 00:00:09]} 6. Qc2 {[%clk 01:28:59]} {[%emt
00:00:54]} Bb5 {[%clk 01:31:06]} {[%emt 00:01:05]} 7. Bxb5+ {[%clk 01:27:15]}
{[%emt 00:02:13]} Qxb5 {[%clk 01:31:23]} {[%emt 00:00:14]} 8. a4 {[%clk
01:27:34]} {[%emt 00:00:11]} Qa6 {[%clk 01:30:10]} {[%emt 00:01:43]} 9. Na3
{[%clk 01:28:02]} {[%emt 00:00:02]} Nc6 {[%clk 01:25:22]} {[%emt 00:05:18]} 10.
Nb5 {[%clk 01:26:54]} {[%emt 00:01:38]} Qa5 {[%clk 01:19:16]} {[%emt 00:06:36]}
11. dxc5 {[%clk 01:24:50]} {[%emt 00:02:35]} a6 {[%clk 01:14:53]} {[%emt
00:04:52]} 12. Nd6+ {[%clk 01:24:51]} {[%emt 00:00:26]} Bxd6 {[%clk 01:12:58]}
{[%emt 00:02:27]} 13. cxd6 {[%clk 01:25:08]} {[%emt 00:00:12]} f6 {[%clk
01:06:23]} {[%emt 00:07:06]} 14. b4 {[%clk 01:19:37]} {[%emt 00:06:01]} Qd8
{[%clk 01:05:48]} {[%emt 00:01:05]} 15. Nd4 {[%clk 01:14:06]} {[%emt 00:05:59]}
Qc8 {[%clk 00:59:30]} {[%emt 00:06:51]} 16. Nxc6 {[%clk 01:12:41]} {[%emt
00:01:54]} Qxc6 {[%clk 00:58:59]} {[%emt 00:01:02]} 17. f4 {[%clk 01:10:43]}
{[%emt 00:02:28]} Rc8 {[%clk 00:57:09]} {[%emt 00:02:19]} 18. Bb2 {[%clk
01:10:09]} {[%emt 00:01:04]} Qc4 {[%clk 00:55:08]} {[%emt 00:02:31]} 19. Rf1
{[%clk 01:08:29]} {[%emt 00:02:10]} Nh6 {[%clk 00:54:28]} {[%emt 00:01:11]} 20.
O-O-O {[%clk 01:06:34]} {[%emt 00:02:24]} Nf5 {[%clk 00:51:44]} {[%emt
00:03:16]} 21. Rf3 {[%clk 01:04:07]} {[%emt 00:02:56]} O-O {[%clk 00:39:04]}
{[%emt 00:13:10]} 22. g4 {[%clk 00:46:22]} {[%emt 00:18:13]} Nh4 {[%clk
00:28:00]} {[%emt 00:11:35]} 23. Rd4 {[%clk 00:44:10]} {[%emt 00:02:40]} Qxd4
{[%clk 00:27:11]} {[%emt 00:01:22]} 24. cxd4 {[%clk 00:44:20]} {[%emt
00:00:19]} Rxc2+ {[%clk 00:27:40]} 25. Kxc2 {[%clk 00:43:36]} {[%emt 00:01:16]}
Nxf3 {[%clk 00:28:09]} 26. Bc3 {[%clk 00:43:12]} {[%emt 00:00:51]} b5 {[%emt
00:01:51]} 27. Kd3 {[%clk 00:42:46]} Nxh2 {[%clk 00:25:45]} {[%emt 00:02:32]}
28. axb5 {[%clk 00:42:31]} {[%emt 00:00:44]} axb5 {[%clk 00:26:15]} 29. Be1
{[%clk 00:42:47]} {[%emt 00:00:12]} Nxg4 {[%clk 00:26:02]} {[%emt 00:00:47]} 30.
Bh4 {[%clk 00:43:06]} {[%emt 00:00:08]} Kf7 {[%emt 00:03:38]} 31. Ke2 {[%clk
00:40:03]} {[%emt 00:00:11]} Nh6 {[%clk 00:26:36]} {[%emt 00:00:12]} 32. Kf3
{[%clk 00:38:23]} {[%emt 00:02:09]} Nf5 {[%clk 00:27:05]} {[%emt 00:00:03]} 33.
Bf2 {[%clk 00:38:26]} {[%emt 00:00:26]} Ra8 {[%clk 00:27:22]} {[%emt 00:00:14]}
34. exf6 {[%clk 00:38:41]} {[%emt 00:00:15]} gxf6 {[%clk 00:27:48]} {[%emt
00:00:04]} 35. d7 {[%clk 00:38:31]} {[%emt 00:00:40]} Ke7 {[%clk 00:28:00]}
{[%emt 00:00:18]} 36. d8=Q+ {[%clk 00:38:18]} {[%emt 00:00:43]} Rxd8 {[%clk
00:28:05]} {[%emt 00:00:25]} 37. Kg4 {[%clk 00:37:42]} {[%emt 00:01:06]} Ra8
{[%clk 00:28:23]} {[%emt 00:00:12]} 38. Kh5 {[%clk 00:37:42]} {[%emt 00:00:29]}
Ra2 {[%clk 00:28:45]} {[%emt 00:00:09]} 39. Bh4 {[%clk 00:37:38]} {[%emt
00:00:33]} Rh2 {[%clk 00:28:17]} {[%emt 00:00:59]} 40. Kg4 {[%clk 00:37:31]}
{[%emt 00:00:36]} Rxh4+ {[%clk 00:28:46]} 41. Kf3 {[%clk 00:37:59]} {[%emt
00:00:03]} Nxd4+ {[%clk 00:29:15]} 42. Kg3 {[%clk 00:36:21]} {[%emt 00:02:09]}
Rxf4 {[%clk 00:29:40]} {[%emt 00:00:05]} 43. Kxf4 {[%clk 00:36:32]} {[%emt
00:00:19]} Nc2 {[%clk 00:30:09]} 0-1

[Event "Nové Hrady - Open"]
[Site "Nové Hrady, Czech Republic"]
[Date "2024.08.12"]
[Round "2.1"]
[White "Garabik, Marek"]
[Black "Žilavý, Jan"]
[Result "0-1"]
[TimeControl "2x90min+30s"]
[WhiteFideId "23717742"]
[BlackFideId "350141"]
[WhiteElo "1916"]
[BlackElo "2127"]

1. e4 {[%clk 01:30:49]} {[%emt 00:00:11]} c6 {[%clk 01:30:40]} {[%emt
00:00:20]} 2. d4 {[%clk 01:28:49]} {[%emt 00:02:31]} d5 {[%clk 01:31:03]}
{[%emt 00:00:06]} 3. exd5 {[%clk 01:29:14]} {[%emt 00:00:05]} cxd5 {[%clk
01:31:26]} {[%emt 00:00:07]} 4. Bd3 {[%clk 01:28:54]} {[%emt 00:00:50]} Nc6
{[%clk 01:31:36]} {[%emt 00:00:20]} 5. c3 {[%clk 01:29:18]} {[%emt 00:00:07]}
Qc7 {[%clk 01:30:34]} {[%emt 00:01:31]} 6. Ne2 {[%clk 01:28:19]} {[%emt
00:01:30]} Nf6 {[%clk 01:29:35]} {[%emt 00:01:29]} 7. Bf4 {[%clk 01:28:16]}
{[%emt 00:00:32]} e5 {[%clk 01:29:51]} {[%emt 00:00:14]} 8. dxe5 {[%clk
01:26:39]} {[%emt 00:02:07]} Nxe5 {[%clk 01:28:37]} {[%emt 00:01:44]} 9. O-O
{[%clk 01:25:52]} {[%emt 00:01:18]} Bd6 {[%clk 01:28:29]} {[%emt 00:00:38]} 10.
Bb5+ {[%clk 01:23:57]} {[%emt 00:02:25]} Bd7 {[%clk 01:27:10]} {[%emt
00:01:48]} 11. Bxd7+ {[%clk 01:23:39]} {[%emt 00:00:48]} Qxd7 {[%clk 01:25:48]}
{[%emt 00:01:51]} 12. Re1 {[%clk 01:22:10]} {[%emt 00:02:00]} O-O {[%clk
01:24:40]} {[%emt 00:01:38]} 13. Nd4 {[%clk 01:20:18]} {[%emt 00:02:23]} Rfe8
{[%clk 01:23:32]} {[%emt 00:01:38]} 14. Nd2 {[%clk 01:18:58]} {[%emt 00:01:50]}
Nd3 {[%clk 01:22:04]} {[%emt 00:01:58]} 15. Rxe8+ {[%clk 01:18:11]} {[%emt
00:01:16]} Rxe8 {[%clk 01:22:26]} {[%emt 00:00:08]} 16. Be3 {[%clk 01:17:08]}
{[%emt 00:01:32]} Nxb2 {[%clk 01:20:59]} {[%emt 00:01:58]} 17. Qb3 {[%clk
01:16:10]} {[%emt 00:01:28]} Nd3 {[%clk 01:20:59]} {[%emt 00:00:30]} 18. Nb5
{[%clk 01:07:17]} {[%emt 00:09:23]} Ng4 {[%clk 01:19:15]} {[%emt 00:02:14]} 19.
Nxd6 {[%clk 01:06:59]} {[%emt 00:00:49]} Qxd6 {[%clk 01:19:36]} {[%emt
00:00:08]} 20. Nf1 {[%clk 01:07:10]} {[%emt 00:00:19]} Nxe3 {[%clk 01:13:33]}
{[%emt 00:06:33]} 21. fxe3 {[%clk 01:05:52]} {[%emt 00:01:49]} Qc5 {[%clk
01:08:13]} {[%emt 00:05:50]} 22. h3 {[%clk 01:02:46]} {[%emt 00:03:35]} Ne5
{[%clk 00:57:42]} {[%emt 00:11:01]} 23. Rd1 {[%clk 00:59:23]} {[%emt 00:03:54]}
Nc4 {[%clk 00:56:53]} {[%emt 00:01:18]} 24. Qxb7 {[%clk 00:57:43]} {[%emt
00:02:10]} Nxe3 {[%clk 00:52:36]} {[%emt 00:04:47]} 25. Nxe3 {[%clk 00:57:46]}
{[%emt 00:00:28]} Rxe3 {[%clk 00:52:39]} {[%emt 00:00:26]} 26. Qxd5 {[%clk
00:46:19]} {[%emt 00:11:57]} Re1+ {[%clk 00:52:42]} {[%emt 00:00:27]} 27. Kh2
{[%clk 00:46:47]} Qg1+ {[%clk 00:53:04]} {[%emt 00:00:10]} 28. Kg3 {[%clk
00:45:52]} {[%emt 00:01:25]} Qe3+ {[%clk 00:53:27]} {[%emt 00:00:07]} 29. Kh4
{[%clk 00:37:32]} {[%emt 00:08:49]} Qf4+ {[%clk 00:52:52]} {[%emt 00:01:05]} 30.
g4 {[%clk 00:37:38]} {[%emt 00:00:25]} Qf2+ {[%clk 00:52:22]} {[%emt 00:00:59]}
31. Kg5 {[%clk 00:36:06]} {[%emt 00:02:02]} Qf6+ {[%clk 00:52:42]} {[%emt
00:00:10]} 32. Kh5 {[%clk 00:35:10]} {[%emt 00:01:26]} Qh6# {[%clk 00:53:07]}
{[%emt 00:00:05]} 0-1

[Event "Nové Hrady - Open"]
[Site "Nové Hrady, Czech Republic"]
[Date "2024.08.12"]
[Round "2.2"]
[White "Dudek, Vojtěch"]
[Black "Rendl, Luboš"]
[Result "1-0"]
[TimeControl "2x90min+30s"]
[WhiteFideId "398780"]
[BlackFideId "23750197"]
[WhiteElo "2117"]
[BlackElo "1848"]

1. d4 {[%clk 01:30:53]} {[%emt 00:00:06]} Nf6 {[%clk 01:30:05]} {[%emt
00:00:57]} 2. Bf4 {[%clk 01:31:03]} {[%emt 00:00:19]} g6 {[%clk 01:29:00]}
{[%emt 00:01:36]} 3. Nc3 {[%clk 01:31:17]} {[%emt 00:00:15]} d5 {[%clk
01:28:55]} {[%emt 00:00:35]} 4. e3 {[%clk 01:31:13]} {[%emt 00:00:34]} Bg7
{[%clk 01:28:24]} {[%emt 00:01:02]} 5. Be2 {[%clk 01:31:11]} {[%emt 00:00:31]}
c6 {[%clk 01:28:23]} {[%emt 00:00:31]} 6. h3 {[%clk 01:26:58]} {[%emt
00:04:43]} Nbd7 {[%clk 01:27:13]} {[%emt 00:01:40]} 7. Nf3 {[%clk 01:27:03]}
{[%emt 00:00:24]} O-O {[%clk 01:23:04]} {[%emt 00:04:41]} 8. O-O {[%clk
01:27:01]} {[%emt 00:00:31]} Qb6 {[%clk 01:18:11]} {[%emt 00:05:22]} 9. a3
{[%emt 00:10:56]} a5 {[%clk 01:11:42]} {[%emt 00:06:50]} 10. b4 {[%clk
01:08:08]} {[%emt 00:09:07]} Qa7 {[%clk 00:56:57]} {[%emt 00:15:15]} 11. b5
{[%clk 00:59:27]} {[%emt 00:09:12]} a4 {[%clk 00:49:54]} {[%emt 00:07:33]} 12.
Rb1 {[%clk 00:55:21]} {[%emt 00:04:33]} Qa5 {[%clk 00:43:49]} {[%emt 00:06:37]}
13. Rb4 {[%clk 00:53:31]} {[%emt 00:02:20]} cxb5 {[%clk 00:37:37]} {[%emt
00:06:43]} 14. Bxb5 {[%clk 00:51:11]} {[%emt 00:02:49]} Nb6 {[%clk 00:33:16]}
{[%emt 00:04:50]} 15. Bc7 {[%clk 00:49:21]} {[%emt 00:02:20]} Qa7 {[%clk
00:28:41]} {[%emt 00:05:06]} 16. Bd3 {[%clk 00:44:18]} {[%emt 00:05:33]} Ne4
{[%clk 00:26:36]} {[%emt 00:02:36]} 17. Bxe4 {[%clk 00:42:30]} {[%emt
00:02:17]} dxe4 {[%clk 00:26:41]} {[%emt 00:00:25]} 18. Bxb6 {[%clk 00:42:51]}
{[%emt 00:00:08]} Qb8 {[%clk 00:26:45]} {[%emt 00:00:27]} 19. Nxe4 {[%clk
00:42:57]} {[%emt 00:00:23]} Bf5 {[%clk 00:26:50]} {[%emt 00:00:26]} 20. Ng3
{[%clk 00:42:56]} {[%emt 00:00:29]} Rc8 {[%clk 00:27:05]} {[%emt 00:00:18]} 21.
Nxf5 {[%clk 00:43:08]} {[%emt 00:00:17]} gxf5 {[%clk 00:27:24]} {[%emt
00:00:11]} 1-0

[Event "Nové Hrady - Open"]
[Site "Nové Hrady, Czech Republic"]
[Date "2024.08.12"]
[Round "2.3"]
[White "Schulz, Gerhard"]
[Black "Šimůnek, Jakub Šimon"]
[Result "0-1"]
[TimeControl "2x90min+30s"]
[WhiteFideId "1634780"]
[BlackFideId "23709464"]
[WhiteElo "1804"]
[BlackElo "2042"]

1. d4 {[%clk 01:30:56]} {[%emt 00:00:04]} d5 {[%clk 01:30:56]} {[%emt
00:00:05]} 2. Bf4 {[%clk 01:30:47]} {[%emt 00:00:38]} c5 {[%clk 01:30:32]}
{[%emt 00:00:54]} 3. e3 {[%clk 01:31:00]} {[%emt 00:00:18]} Nc6 {[%clk
01:30:58]} {[%emt 00:00:05]} 4. Nf3 {[%clk 01:30:57]} {[%emt 00:00:31]} Nf6
{[%clk 01:31:22]} {[%emt 00:00:06]} 5. Nc3 {[%clk 01:31:13]} {[%emt 00:00:14]}
a6 {[%clk 01:29:22]} {[%emt 00:02:31]} 6. Be2 {[%clk 01:31:22]} {[%emt
00:00:21]} g6 {[%clk 01:27:50]} {[%emt 00:02:01]} 7. O-O {[%clk 01:29:56]}
{[%emt 00:01:56]} Bg7 {[%clk 01:28:16]} {[%emt 00:00:04]} 8. Re1 {[%clk
01:27:00]} {[%emt 00:03:26]} O-O {[%clk 01:28:26]} {[%emt 00:00:21]} 9. Ne5
{[%clk 01:23:04]} {[%emt 00:04:26]} Be6 {[%clk 01:16:27]} {[%emt 00:12:29]} 10.
Bf3 {[%clk 01:19:40]} {[%emt 00:03:53]} cxd4 {[%clk 01:05:53]} {[%emt
00:11:05]} 11. exd4 {[%clk 01:19:40]} {[%emt 00:00:29]} Rc8 {[%clk 01:04:25]}
{[%emt 00:01:58]} 12. Ne2 {[%clk 01:19:20]} {[%emt 00:00:49]} Qb6 {[%clk
01:02:09]} {[%emt 00:02:47]} 13. Rb1 {[%clk 01:16:57]} {[%emt 00:02:53]} Rfd8
{[%clk 00:51:53]} {[%emt 00:10:47]} 14. c3 {[%clk 01:17:01]} {[%emt 00:00:26]}
Bf5 {[%clk 00:47:33]} {[%emt 00:04:49]} 15. Nd3 {[%clk 01:16:50]} {[%emt
00:00:41]} Qa5 {[%clk 00:46:58]} {[%emt 00:01:06]} 16. Ra1 {[%clk 01:13:36]}
{[%emt 00:03:43]} b5 {[%clk 00:39:57]} {[%emt 00:07:31]} 17. Ne5 {[%clk
01:13:40]} {[%emt 00:00:26]} b4 {[%clk 00:36:25]} {[%emt 00:04:03]} 18. c4
{[%clk 01:04:05]} {[%emt 00:10:04]} Nxe5 {[%clk 00:33:39]} {[%emt 00:03:17]} 19.
dxe5 {[%clk 01:02:42]} {[%emt 00:01:52]} dxc4 {[%clk 00:33:50]} {[%emt
00:00:19]} 20. Bd2 {[%clk 00:59:42]} {[%emt 00:03:30]} Nd5 {[%clk 00:26:53]}
{[%emt 00:07:28]} 21. Qc1 {[%clk 00:54:55]} {[%emt 00:05:16]} c3 {[%clk
00:25:11]} {[%emt 00:02:13]} 22. bxc3 {[%clk 00:54:47]} {[%emt 00:00:37]} bxc3
{[%clk 00:25:31]} {[%emt 00:00:10]} 23. Bg5 {[%clk 00:52:14]} {[%emt 00:03:03]}
Nb4 {[%clk 00:09:05]} {[%emt 00:16:57]} 24. Bxe7 {[%clk 00:51:24]} {[%emt
00:01:19]} Nd3 {[%clk 00:07:41]} {[%emt 00:01:56]} 25. Bxd8 {[%clk 00:49:30]}
{[%emt 00:02:22]} Qxd8 {[%clk 00:08:09]} {[%emt 00:00:02]} 26. Rd1 {[%clk
00:48:17]} {[%emt 00:01:43]} c2 {[%clk 00:05:22]} {[%emt 00:03:17]} 27. Rxd3
{[%clk 00:35:12]} {[%emt 00:13:35]} Qxd3 {[%clk 00:05:42]} {[%emt 00:00:10]} 28.
Nf4 {[%clk 00:35:08]} {[%emt 00:00:33]} Qc3 {[%clk 00:06:04]} {[%emt 00:00:09]}
29. Ne2 {[%clk 00:34:46]} {[%emt 00:00:52]} Qxe5 {[%clk 00:06:28]} {[%emt
00:00:06]} 0-1